bitfinex-derivatives/quotes_ETHF0:USTF0_20240904
["timestamp","ask_amount","ask_price","bid_price","bid_amount"]
[1725474444763,4.0816,2450.3,2450.2,0.40806]
[1725474446060,0.3598,2450.4,2450.2,0.40806]
[1725474446261,0.3598,2450.4,2450.0,0.75452207]
[1725474446262,0.76783,2450.4,2450.3,0.40805]
[1725474446567,4.84863,2450.4,2450.3,0.40805]
[1725474447151,4.4406,2450.4,2450.3,0.40805]
[1725474447958,4.0808,2450.4,2450.3,0.40805]
[1725474451667,4.48883,2450.4,2450.3,0.40805]
[1725474451961,3.5638,2450.5,2450.4,0.40803]
[1725474452373,4.4368,2450.5,2450.4,0.40803]
[1725474452756,0.3921,2450.6,2450.5,0.40801]
[1725474452969,0.8001,2450.6,2450.5,0.40801]
[1725474453162,4.8809,2450.6,2450.5,0.40801]
[1725474453357,0.40805,2450.4,2450.3,0.40804]
[1725474453560,0.40805,2450.3,2450.2,0.40805]
[1725474453763,0.78755,2450.3,2450.2,0.40805]
[1725474454667,0.40807,2450.2,2450.1,0.40807]
[1725474454872,1.39964,2450.3,2450.0,0.00612207]
[1725474455163,1.39964,2450.3,2450.0,0.41420207]
[1725474455164,0.40808,2450.1,2450.0,0.41420207]
[1725474455371,0.40808,2450.1,2450.0,0.00612207]
[1725474455568,0.78278,2450.1,2450.0,0.00612207]
[1725474455868,0.3747,2450.1,2450.0,0.41422207]
[1725474456263,0.78278,2450.1,2450.0,0.41422207]
[1725474456457,0.3747,2450.1,2450.0,0.41422207]
[1725474457464,0.40813,2449.8,2449.6,0.40816]
[1725474457768,0.40815,2449.7,2449.3,0.3716]
[1725474457966,0.40815,2449.7,2449.4,0.4082]
[1725474458280,0.78194,2449.8,2449.4,0.4082]
[1725474458467,0.3738,2449.8,2449.7,0.40815]
[1725474459768,0.3738,2449.8,2449.4,0.00612207]
[1725474459769,0.3747,2450.1,2449.8,0.40813]
[1725474459964,0.7321,2450.1,2449.6,2.82]
[1725474460161,0.7321,2450.1,2449.9,0.40811]
[1725474460366,0.7321,2450.1,2450.0,0.4081]
[1725474460568,0.7321,2450.1,2449.9,0.40811]
[1725474460762,0.7321,2450.1,2449.8,0.40812]
[1725474461378,1.14018,2450.1,2449.8,0.40812]
[1725474461670,0.7321,2450.1,2449.6,3.2078]
[1725474461971,0.7321,2450.1,2449.4,0.39182207]
[1725474461972,3.5521,2450.1,2449.4,0.39182207]
[1725474462173,0.40811,2450.0,2449.6,0.40815]
[1725474462370,0.40811,2449.9,2449.6,0.40815]
[1725474462575,0.4081,2450.0,2449.7,0.40814]
[1725474463173,0.40811,2449.9,2449.7,0.40814]
[1725474463678,0.40811,2450.0,2449.7,0.40814]
[1725474464176,3.9399,2450.1,2450.0,0.4081]
[1725474464369,3.9399,2450.1,2449.9,0.4081]
[1725474464770,4.34799,2450.1,2449.9,0.4081]
[1725474464968,0.40812,2449.9,2449.7,0.40814]
[1725474465479,6.7599,2450.1,2449.7,0.40814]
[1725474465866,0.40812,2449.9,2449.7,0.40814]
[1725474466677,0.40811,2450.0,2449.8,0.40813]
[1725474466979,0.40811,2449.9,2449.7,0.40813]
[1725474467179,7.78013,2450.1,2449.6,0.40815]
[1725474467375,7.78013,2450.1,2449.7,0.40815]
[1725474467574,0.40813,2449.9,2449.7,0.40815]
[1725474467771,0.40813,2449.9,2449.7,0.40814]
[1725474468682,0.40813,2449.9,2449.8,0.40813]
[1725474468881,3.9399,2450.1,2450.0,0.4081]
[1725474469177,9.9399,2450.1,2450.0,0.4081]
[1725474469379,14.42959,2450.1,2449.9,0.4081]
[1725474469574,0.4081,2450.0,2449.9,0.4081]
[1725474469774,4.4897,2450.0,2449.9,0.4081]
[1725474470883,0.40812,2449.9,2449.5,4.22825]
[1725474471185,0.40813,2449.8,2449.7,0.40813]
[1725474471781,13.2902,2449.8,2449.4,0.00612207]
[1725474471991,1.42864,2449.5,2449.4,0.00612207]
[1725474472484,5.51104,2449.5,2449.4,0.00612207]
[1725474473089,8.71884,2449.5,2449.4,0.00612207]
[1725474473889,9.7393,2449.5,2449.4,0.00612207]
[1725474474189,18.5593,2449.5,2449.4,0.00612207]
[1725474474493,17.53884,2449.5,2449.4,0.00612207]
[1725474479794,8.71884,2449.5,2449.4,0.00612207]
[1725474480599,7.69838,2449.5,2449.4,0.41432207]
[1725474480806,3.2078,2449.5,2449.4,0.41432207]
[1725474481293,3.2078,2449.5,2449.4,0.80772207]
[1725474482096,3.2078,2449.5,2449.4,1.18872207]
[1725474482691,0.40816,2449.6,2449.5,0.40818]
[1725474482887,0.40816,2449.6,2449.5,0.77058]
[1725474483088,0.40815,2449.7,2449.6,0.40815]
[1725474483306,0.40814,2449.8,2449.7,0.40814]
[1725474483489,4.39522,2449.9,2449.8,0.40813]
[1725474483696,0.40813,2449.8,2449.7,0.40814]
[1725474484002,3.9871,2449.9,2449.5,0.3624]
[1725474484200,0.40813,2449.8,2449.7,0.40814]
[1725474484591,4.49053,2449.8,2449.7,0.40814]
[1725474484991,0.40813,2449.8,2449.7,0.40814]
[1725474486301,3.61592,2449.9,2449.8,0.40813]
[1725474486497,3.2078,2449.9,2449.8,0.40813]
[1725474487707,3.61591,2449.9,2449.8,0.40813]
[1725474487994,3.2078,2449.9,2449.8,0.40813]
[1725474488196,3.61591,2449.9,2449.8,0.40813]
[1725474488503,3.2078,2449.9,2449.8,0.40813]
[1725474488706,3.61591,2449.9,2449.8,0.40813]
[1725474489395,3.2078,2449.9,2449.8,0.40813]
[1725474489797,3.61591,2449.9,2449.8,0.40813]
[1725474490894,3.61591,2449.9,2449.5,0.3624]
[1725474491096,0.40816,2449.6,2449.5,0.77056]
[1725474491303,1.42864,2449.5,2449.4,0.00612207]
[1725474491598,5.89444,2449.5,2449.4,0.00612207]
[1725474491903,4.87398,2449.5,2449.4,0.41432207]
[1725474492200,4.87398,2449.5,2449.4,0.00612207]
[1725474492798,4.87398,2449.5,2449.4,0.41432207]
[1725474494296,4.87398,2449.5,2449.4,0.00612207]
[1725474494601,4.87398,2449.5,2449.4,0.41432207]
[1725474495302,4.87398,2449.5,2449.4,0.00612207]
[1725474495897,4.87398,2449.5,2449.4,0.41432207]
[1725474496299,4.87398,2449.5,2449.4,0.00612207]
[1725474497303,5.89444,2449.5,2449.4,0.00612207]
[1725474499003,3.2078,2449.6,2449.5,0.40818]
[1725474499200,4.09377996,2449.8,2449.6,0.40816]
[1725474499201,0.3893,2449.8,2449.6,0.40816]
[1725474499408,0.40816,2449.7,2449.6,0.40816]
[1725474499898,0.40816,2449.7,2449.4,0.00612207]
[1725474499899,1.42864,2449.5,2449.4,0.00612207]
[1725474500102,4.63644,2449.5,2449.4,0.00612207]
[1725474500304,8.71884,2449.5,2449.4,0.00612207]
[1725474501299,12.42331996,2449.5,2449.4,0.00612207]
[1725474501506,3.61598,2449.5,2449.4,0.00612207]
[1725474501707,7.69838,2449.5,2449.4,0.00612207]
[1725474501906,12.42331996,2449.5,2449.4,0.00612207]
[1725474502305,3.61598,2449.5,2449.4,0.00612207]
[1725474502516,3.61598,2449.5,2449.4,0.41432207]
[1725474503420,7.32045996,2449.5,2449.4,0.00612207]
[1725474504707,4.11265996,2449.5,2449.4,0.00612207]
[1725474505017,4.11265996,2449.5,2449.4,0.41432207]
[1725474505217,0.40818,2449.5,2449.4,0.00612207]
[1725474506313,0.40818,2449.5,2449.4,0.41432207]
[1725474507409,3.70447996,2449.8,2449.6,1.02042]
[1725474507610,3.70447996,2449.9,2449.8,1.42846]
[1725474507818,3.2078,2450.0,2449.9,0.40811]
[1725474508615,3.6159,2450.0,2449.9,0.40811]
[1725474508819,9.73227996,2450.0,2449.7,0.78654]
[1725474509019,0.40816,2449.7,2449.6,0.40816]
[1725474509721,0.40816,2449.6,2449.5,0.76887]
[1725474510022,0.40818,2449.5,2449.4,0.00612207]
[1725474510407,1.42864,2449.5,2449.4,0.00612207]
[1725474510607,0.40818,2449.5,2449.4,0.00612207]
[1725474511319,4.12903339,2449.5,2449.4,0.00612207]
[1725474511721,5.14949339,2449.5,2449.4,0.00612207]
[1725474513817,1.42864,2449.5,2449.4,0.00612207]
[1725474514414,5.14972935,2449.5,2449.4,0.00612207]
[1725474514610,11.51104,2449.5,2449.4,0.00612207]
[1725474514818,5.51104,2449.5,2449.4,0.00612207]
[1725474515118,15.23197336,2449.5,2449.4,0.00612207]
[1725474515316,11.51104,2449.5,2449.4,0.00612207]
[1725474515722,15.23241357,2449.5,2449.4,0.00612207]
[1725474516421,11.51104,2449.5,2449.4,0.00612207]
[1725474517816,5.51104,2449.5,2449.4,0.00612207]
[1725474518830,16.78763212,2449.5,2449.4,0.00612207]
[1725474519015,0.40825,2449.1,2449.0,0.40825]
[1725474520227,0.78044,2449.2,2449.1,0.40825]
[1725474520524,0.40824,2449.2,2449.1,0.40825]
[1725474521118,6.93561613,2449.3,2449.2,0.40823]
[1725474521326,3.21392207,2449.3,2449.2,0.40823]
[1725474524331,3.62213207,2449.3,2449.2,0.40823]
[1725474524526,3.21392207,2449.3,2449.2,0.40823]
[1725474524829,3.62213207,2449.3,2449.2,0.40823]
[1725474525222,0.41433207,2449.3,2449.2,0.40823]
[1725474527234,0.78373207,2449.3,2449.2,0.40823]
[1725474527724,0.40824,2449.2,2449.1,0.40823]
[1725474531927,0.78375207,2449.3,2449.0,1.02067]
[1725474532235,0.00612207,2449.3,2449.2,0.40823]
[1725474532626,0.00612207,2449.3,2449.2,4.49143]
[1725474532827,0.00612207,2449.3,2449.2,8.71981]
[1725474534232,4.12982406,2449.8,2449.7,0.40815]
[1725474535033,3.72169406,2449.8,2449.7,0.40815]
[1725474535333,4.66149465,2449.9,2449.8,0.40813]
[1725474535334,4.12982406,2449.9,2449.8,0.40813]
[1725474535526,4.12982406,2449.9,2449.7,0.40814]
[1725474535527,0.40813,2449.8,2449.7,0.40814]
[1725474536031,4.12981406,2449.9,2449.8,0.40813]
[1725474536534,3.72781613,2450.0,2449.9,0.40811]
[1725474536731,0.00612207,2450.0,2449.9,6.2569]
[1725474536932,0.00612207,2450.0,2449.9,6.6312]
[1725474537131,0.00612207,2450.0,2449.9,9.839]
[1725474537339,0.00612207,2450.0,2449.9,15.839]
[1725474539338,0.00612207,2450.0,2449.9,4.73711]
[1725474540233,0.41422207,2450.0,2449.9,1.14241]
[1725474540537,0.41422207,2450.0,2449.9,0.40811]
[1725474540931,0.40812,2449.9,2449.8,0.40812]
[1725474541537,0.37902207,2450.0,2449.9,0.40811]
[1725474541734,0.00612207,2450.0,2449.9,0.40811]
[1725474545236,0.00612207,2450.0,2449.9,3.61591]
[1725474545432,0.00612207,2450.0,2449.9,4.6362]
[1725474545740,0.00612207,2450.0,2449.9,3.61591]
[1725474547048,0.00612207,2450.0,2449.9,1.4284]
[1725474547346,0.00612207,2450.0,2449.9,12.53029]
[1725474547545,0.79641,2450.6,2450.5,0.40801]
[1725474548047,0.3884,2450.6,2450.5,0.40801]
[1725474548546,0.7964,2450.6,2450.5,0.40801]
[1725474549154,0.40801,2450.5,2450.4,3.61582]
[1725474549450,0.40801,2450.5,2450.4,0.40802]
[1725474552138,0.79641,2450.6,2450.5,0.40801]
[1725474557246,0.3884,2450.6,2450.5,0.40801]
[1725474557447,0.7964,2450.6,2450.5,0.40801]
[1725474560352,0.7964,2450.6,2450.3,0.38122207]
[1725474560353,0.3884,2450.6,2450.3,0.38122207]
[1725474560558,0.3884,2450.6,2450.4,0.40802]
[1725474560559,0.40803,2450.5,2450.4,0.40802]
[1725474562757,0.40803,2450.4,2450.3,0.41415207]
[1725474563058,0.78643,2450.4,2450.3,0.41415207]
[1725474564554,1.80651,2450.4,2450.3,0.00612207]
[1725474564858,10.11899,2450.4,2450.3,0.00612207]
[1725474568352,0.40811,2450.0,2449.9,0.40811]
[1725474570761,0.40812,2449.9,2449.8,0.40812]
[1725474570962,0.40811,2450.0,2449.9,0.40811]
[1725474571159,0.40808,2450.1,2450.0,0.40809]
[1725474572664,0.77577,2450.2,2450.1,0.40808]
[1725474573969,5.28904,2450.4,2450.0,1.02024]
[1725474574168,4.4894,2450.4,2450.3,0.40805]
[1725474575059,4.89743,2450.4,2450.3,0.40805]
[1725474575866,0.40806,2450.2,2450.1,0.40806]
[1725474576471,0.76326,2450.2,2450.1,0.40806]
[1725474577368,1.13696,2450.2,2450.1,0.40806]
[1725474577577,0.4081,2450.0,2449.9,0.40809]
[1725474579668,0.40809,2450.1,2450.0,0.40809]
[1725474582270,4.12978406,2450.1,2450.0,0.40809]
[1725474582467,0.40809,2450.1,2450.0,0.40809]
[1725474582667,7.69277406,2450.2,2450.1,0.40808]
[1725474583067,0.4081,2450.1,2450.0,0.40809]
[1725474583269,4.12979406,2450.1,2450.0,0.40809]
[1725474584182,6.54169406,2450.1,2449.8,0.7561]
[1725474584472,3.22811,2449.9,2449.8,0.40812]
[1725474584973,3.62021,2449.9,2449.8,0.40812]
[1725474585770,3.2121,2449.9,2449.8,0.40812]
[1725474585980,0.3921,2449.9,2449.8,0.40812]
[1725474586972,0.80021,2449.9,2449.8,0.40812]
[1725474588876,0.80021,2449.9,2449.7,0.00612207]
[1725474588877,1.42846,2449.8,2449.7,0.00612207]
[1725474589068,2.19926,2449.8,2449.7,0.00612207]
[1725474589466,0.80143,2449.8,2449.7,0.41427207]
[1725474591275,0.3933,2449.8,2449.7,0.41427207]
[1725474591486,0.40813,2449.8,2449.7,0.41427207]
[1725474592472,4.00802,2449.9,2449.8,0.40813]
[1725474592679,3.72169406,2450.0,2449.9,0.40811]
[1725474592870,0.4081,2450.0,2449.9,0.40811]
[1725474593067,0.4081,2450.0,2449.9,3.61591]
[1725474593779,0.40809,2450.1,2450.0,0.40809]
[1725474594276,4.12977406,2450.2,2450.1,0.40808]
[1725474594476,4.51465406,2450.3,2450.2,0.40806]
[1725474594977,0.79296,2450.3,2450.2,0.40806]
[1725474595576,6.92949406,2450.4,2450.3,0.40805]
[1725474596778,7.33752406,2450.4,2450.3,0.40805]
[1725474598478,7.33752406,2450.4,2450.1,1.0202]
[1725474598685,7.33752406,2450.4,2449.9,1.74329]
[1725474598686,0.40805,2450.3,2450.2,0.40805]
[1725474599277,4.12974406,2450.3,2450.2,0.40805]
[1725474599485,0.40807,2450.2,2450.1,0.40806]
[1725474599779,0.77157,2450.2,2450.1,0.40806]
[1725474599985,0.40812,2449.9,2449.8,0.40811]
[1725474600175,1.02025,2450.0,2449.7,0.38072207]
[1725474600372,0.40813,2449.8,2449.7,0.00612207]
[1725474600578,0.40813,2449.8,2449.2,0.3701]
[1725474600579,0.40819,2449.5,2449.2,0.3701]
[1725474600779,10.76982406,2449.8,2449.2,0.3701]
[1725474600780,0.40817,2449.6,2449.4,0.40819]
[1725474600986,0.40818,2449.5,2449.3,0.4082]
[1725474601681,4.08519406,2449.7,2449.2,0.37622207]
[1725474601682,4.49335406,2449.7,2449.2,0.37622207]
[1725474601878,4.08519406,2449.7,2449.2,0.37622207]
[1725474602187,0.40817,2449.6,2449.4,0.40819]
[1725474602381,0.40818,2449.5,2449.3,0.4082]
[1725474602574,4.08519406,2449.7,2449.3,0.4082]
[1725474602779,0.40818,2449.6,2449.2,0.37622207]
[1725474602980,0.40818,2449.6,2449.3,0.4082]
[1725474603174,4.08519406,2449.7,2449.4,0.40819]
[1725474603175,4.49335406,2449.7,2449.4,0.40819]
[1725474603381,0.40817,2449.6,2449.4,0.40819]
[1725474604082,4.08519406,2449.7,2449.2,6.40402207]
[1725474604387,11.04049406,2449.8,2449.5,0.40818]
[1725474604576,0.76555,2449.7,2449.5,0.40818]
[1725474606079,6.89909406,2449.7,2449.2,3.58402207]
[1725474606282,0.40819,2449.5,2449.3,0.40821]
[1725474606484,0.3631,2449.6,2449.3,0.40821]
[1725474606688,0.3554,2449.5,2449.3,0.40821]
[1725474606984,0.3554,2449.5,2449.2,0.00612207]
[1725474606985,0.40821,2449.3,2449.2,0.00612207]
[1725474607283,4.24875,2449.3,2449.2,0.00612207]
[1725474607589,12.05364406,2449.3,2449.2,0.00612207]
[1725474607788,8.71945,2449.3,2449.2,0.00612207]
[1725474607976,1.02058,2449.2,2448.6,0.79982]
[1725474608182,2.82,2449.0,2448.4,0.3715]
[1725474608382,0.76369,2448.9,2448.6,0.40832]
[1725474608587,1.13029,2448.9,2448.6,0.40832]
[1725474609189,0.722,2448.9,2448.7,0.40831]
[1725474609389,0.722,2448.9,2448.4,0.763]
[1725474609390,3.61605,2449.1,2448.8,0.40829]
[1725474609583,3.5744,2449.1,2448.9,0.3715]
[1725474609785,3.5744,2449.1,2449.0,0.40826]
[1725474610088,3.5744,2449.1,2448.9,0.3715]
[1725474610280,3.5744,2449.1,2448.9,0.77977]
[1725474611085,3.2078,2449.1,2449.0,0.40826]
[1725474611288,3.2078,2449.1,2449.0,0.78786]
[1725474611892,0.3723,2449.3,2449.1,0.40824]
[1725474612287,3.2078,2449.4,2449.0,0.3796]
[1725474612487,3.2078,2449.4,2449.2,0.40822]
[1725474612690,3.2078,2449.4,2449.3,0.40821]
[1725474615399,0.37842207,2449.5,2449.4,0.4082]
[1725474615400,0.00612207,2449.5,2449.4,0.4082]
[1725474615694,0.00612207,2449.5,2449.4,4.8484]
[1725474617496,4.111,2449.7,2449.6,0.40816]
[1725474617802,0.4081,2450.0,2449.8,0.40811]
[1725474618491,0.40813,2449.8,2449.7,0.41426207]
[1725474618894,0.40813,2449.8,2449.7,0.00612207]
[1725474620198,0.40813,2449.8,2449.7,0.41427207]
[1725474621303,0.40812,2449.9,2449.8,0.40813]
[1725474621510,0.73882207,2450.1,2449.7,0.00612207]
[1725474621704,1.14691207,2450.1,2450.0,0.4081]
[1725474621907,0.73882207,2450.1,2450.0,0.4081]
[1725474622699,0.00612207,2450.1,2450.0,0.4081]
[1725474622903,0.00612207,2450.1,2450.0,14.32995]
[1725474623103,4.111,2450.5,2450.4,0.40803]
[1725474623414,3.2078,2450.6,2450.5,0.40801]
[1725474623415,3.6158,2450.6,2450.5,0.40801]
[1725474623607,0.40801,2450.5,2450.4,0.40802]
[1725474624003,3.6158,2450.6,2450.5,0.40801]
[1725474626205,3.2078,2450.6,2450.4,0.40802]
[1725474626704,3.2078,2450.6,2450.3,0.383]
[1725474626705,3.61581,2450.6,2450.5,0.40801]
[1725474627110,7.2886,2450.6,2450.0,0.3601]
[1725474627310,0.40806,2450.2,2450.1,0.40808]
[1725474627806,0.40808,2450.1,2450.0,0.40809]
[1725474628221,0.40808,2450.2,2450.0,0.40809]
[1725474628519,0.40808,2450.1,2450.0,0.40809]
[1725474629111,0.40807,2450.2,2450.1,0.40808]
[1725474629719,0.4081,2450.0,2449.9,4.0093]
[1725474630020,0.40809,2450.1,2449.9,3.6012]
[1725474630420,1.76014,2450.3,2449.9,0.4081]
[1725474630421,0.4081,2450.0,2449.9,0.4081]
[1725474630613,0.4081,2450.1,2450.0,0.4081]
[1725474630814,3.61587,2450.2,2450.1,0.40808]
[1725474631213,7.69747,2450.2,2450.1,0.40808]
[1725474631421,0.74,2450.3,2449.8,1.41133]
[1725474631422,1.14806,2450.3,2450.2,0.40806]
[1725474633725,3.61582,2450.5,2450.4,0.40803]
[1725474634121,7.69662,2450.5,2450.4,0.40803]
[1725474634424,3.2078,2450.5,2450.4,0.40803]
[1725474636921,3.61581,2450.5,2450.4,0.40803]
[1725474637121,3.2078,2450.5,2450.4,0.40803]
[1725474638122,0.00612207,2450.7,2450.6,0.408]
[1725474638314,0.40801,2450.6,2450.5,0.40801]
[1725474638715,0.40803,2450.5,2450.4,0.40802]
[1725474638920,0.40806,2450.3,2450.2,0.40806]
[1725474639633,1.13624,2450.4,2450.3,0.40805]
[1725474639819,0.40805,2450.3,2450.2,0.40805]
[1725474640021,0.40805,2450.3,2450.0,0.7299]
[1725474640022,1.13624,2450.4,2450.3,0.40805]
[1725474640429,0.40805,2450.3,2450.2,0.40805]
[1725474640629,1.13624,2450.4,2450.3,0.40805]
[1725474640820,0.40805,2450.3,2450.2,0.40805]
[1725474643125,0.40808,2450.2,2450.1,0.40808]
[1725474644521,0.40808,2450.1,2450.0,0.7299]
[1725474644727,0.40808,2450.1,2450.0,1.138]
[1725474644921,0.40807,2450.2,2450.1,0.40807]
[1725474646731,3.2078,2450.3,2450.2,0.40806]
[1725474646924,3.2078,2450.3,2450.2,1.42823]
[1725474647129,3.2078,2450.3,2450.2,5.50983]
[1725474649044,0.3925,2450.6,2450.5,0.40801]
[1725474649336,4.89761207,2450.7,2450.6,0.408]
[1725474649337,4.52511207,2450.7,2450.6,0.408]
[1725474650037,4.11712207,2450.7,2450.6,1.428]
[1725474650333,4.11712207,2450.7,2450.6,1.8187]
[1725474651127,4.11712207,2450.7,2450.6,0.7987]
[1725474652235,0.00612207,2450.7,2450.6,1.8187]
[1725474652432,0.00612207,2450.7,2450.6,9.7395]
[1725474653438,0.00612207,2450.7,2450.6,18.9473]
[1725474654136,0.3765,2451.3,2451.2,0.4079]
[1725474654331,3.5698,2451.5,2451.4,0.40786]
[1725474654523,3.5698,2451.5,2451.0,1.79093]
[1725474654728,3.5698,2451.5,2451.1,0.3811]
[1725474655028,3.97765,2451.5,2451.3,0.40787]
[1725474655226,3.5698,2451.5,2451.2,0.00612207]
[1725474655428,0.40788,2451.3,2451.2,0.00612207]
[1725474656037,0.40787,2451.4,2451.2,0.41401207]
[1725474656735,3.97766,2451.5,2451.2,0.41401207]
[1725474657032,3.97766,2451.5,2451.3,0.40788]
[1725474657033,3.5698,2451.5,2451.3,0.40788]
[1725474657234,3.5698,2451.5,2451.2,0.00612207]
[1725474657435,3.5698,2451.5,2451.4,0.40786]
[1725474658138,0.362,2451.5,2451.4,0.40786]
[1725474658634,0.38262207,2451.6,2451.5,0.40785]
[1725474658835,0.00612207,2451.6,2451.5,7.30705]
[1725474659743,0.00612207,2451.6,2451.5,14.32668]
[1725474660128,0.00612207,2451.6,2451.5,17.53448]
[1725474660328,4.111,2452.2,2452.1,0.40775]
[1725474660536,0.7969,2452.4,2451.8,2.82]
[1725474660734,0.7969,2452.4,2452.1,0.40774]
[1725474661333,0.7969,2452.4,2451.9,0.3813]
[1725474661334,0.40771,2452.3,2452.0,0.40775]
[1725474661645,0.79691,2452.4,2452.1,0.40775]
[1725474661838,0.3892,2452.4,2452.1,0.40775]
[1725474662140,0.3892,2452.4,2452.3,0.40771]
[1725474662839,3.21392207,2452.5,2452.2,2.82]
[1725474663042,3.21392207,2452.5,2452.4,0.4077]
[1725474663245,3.21392207,2452.5,2452.3,0.3807]
[1725474663441,3.21392207,2452.5,2452.0,2.82]
[1725474663442,0.3566,2452.4,2452.2,0.40772]
[1725474663648,0.3566,2452.4,2452.2,0.40773]
[1725474663843,0.3566,2452.4,2452.1,0.369]
[1725474664043,0.3566,2452.4,2452.3,0.40771]
[1725474664340,0.3566,2452.4,2452.2,0.40772]
[1725474664540,0.3566,2452.4,2452.2,0.40773]
[1725474664740,0.7643,2452.4,2452.2,0.40773]
[1725474664940,0.3566,2452.4,2452.2,0.40773]
[1725474665142,0.3566,2452.4,2452.3,0.40771]
[1725474665545,0.3566,2452.4,2452.2,0.40772]
[1725474665747,0.3566,2452.4,2452.3,0.40771]
[1725474665940,0.3566,2452.4,2452.1,0.77674]
[1725474666148,0.77102,2452.3,2452.1,0.77674]
[1725474666446,0.3633,2452.3,2452.2,0.40773]
[1725474666945,0.3566,2452.4,2452.3,0.40771]
[1725474667439,3.21392207,2452.5,2452.4,0.4077]
[1725474668641,0.00612207,2452.5,2452.4,3.2277]
[1725474669436,0.00612207,2452.5,2452.4,0.4077]
[1725474669642,3.21392207,2452.5,2452.1,0.369]
[1725474669845,1.01925,2452.4,2451.9,3.2078]
[1725474670047,0.7629,2452.4,2452.2,0.40772]
[1725474670238,0.3552,2452.4,2452.0,0.79045]
[1725474670439,0.79832,2452.3,2452.1,0.40774]
[1725474670640,0.3906,2452.3,2452.2,0.40773]
[1725474671043,3.21392207,2452.5,2452.0,1.40211]
[1725474671250,3.21392207,2452.5,2452.4,0.4077]
[1725474671542,0.00612207,2452.5,2452.4,0.4077]
[1725474673046,0.00612207,2452.5,2452.4,1.1548]
[1725474675149,3.2078,2453.6,2452.5,4.0776]
[1725474675344,0.40754,2453.4,2453.2,2.82]
[1725474675547,0.40754,2453.4,2453.3,0.40755]
[1725474675750,0.7519,2453.5,2452.9,3.2078]
[1725474675751,0.40756,2453.3,2452.9,3.2078]
[1725474676048,0.00612207,2453.3,2453.2,0.40756]
[1725474681256,0.41367207,2453.3,2453.2,0.40756]
[1725474684057,0.00612207,2453.3,2453.2,0.40756]
[1725474684648,0.41367207,2453.3,2453.2,0.40756]
[1725474685258,0.40756,2453.2,2453.1,0.40757]
[1725474685958,0.40758,2453.2,2453.1,0.40757]
[1725474687544,0.79668,2453.2,2453.1,0.40757]
[1725474688351,0.00612207,2453.3,2453.2,0.40756]
[1725474688544,0.00612207,2453.3,2453.2,0.76516]
[1725474689954,0.00612207,2453.3,2453.2,1.78408]
[1725474690159,0.00612207,2453.3,2453.2,2.803]
[1725474690869,0.00612207,2453.3,2453.2,1.78408]
[1725474692159,0.00612207,2453.3,2453.2,0.76516]
[1725474692559,0.00612207,2453.3,2453.2,1.78408]
[1725474693156,0.00612207,2453.3,2453.2,0.76516]
[1725474694266,0.37982207,2453.3,2453.2,0.76516]
[1725474694656,0.00612207,2453.3,2453.2,0.76516]
[1725474695561,0.00612207,2453.3,2453.2,1.78408]
[1725474696961,0.00612207,2453.3,2453.2,12.879]
[1725474697159,4.111,2454.0,2453.5,1.01877]
[1725474697354,0.40742,2454.1,2454.0,0.40743]
[1725474697660,3.5852,2454.2,2453.9,2.82]
[1725474697861,3.99262,2454.2,2454.0,0.40742]
[1725474698057,0.40742,2454.1,2454.0,0.40742]
[1725474698263,3.99261,2454.2,2454.1,0.40742]
[1725474698453,8.06701,2454.2,2454.1,0.40742]
[1725474698657,3.99261,2454.2,2454.1,0.40742]
[1725474698960,0.3774,2454.2,2454.1,0.40742]
[1725474699770,0.3774,2454.2,2454.1,3.22742]
[1725474700355,0.37875172,2454.3,2454.2,0.4074]
[1725474701562,0.4074,2454.2,2454.1,3.2274]
[1725474701963,0.40743,2454.1,2453.8,2.82]
[1725474702270,0.40743,2454.1,2454.0,0.40743]
[1725474702563,0.40745,2454.0,2453.9,0.40744]
[1725474702960,0.40745,2453.9,2453.8,3.22746]
[1725474704863,0.40747,2453.8,2453.7,0.40747]
[1725474705056,0.3664,2453.8,2453.7,0.40748]
[1725474705257,0.77387,2453.8,2453.7,0.40748]
[1725474705860,0.3664,2453.8,2453.7,0.40748]
[1725474707264,0.40746,2453.9,2453.8,0.40747]
[1725474708066,0.76824,2454.0,2453.9,0.40745]
[1725474708262,0.40744,2454.0,2453.9,0.40745]
[1725474708573,0.00405172,2454.3,2453.9,1.01862]
[1725474708768,0.41145172,2454.3,2454.2,0.4074]
[1725474709567,3.5981,2454.4,2454.3,0.40738]
[1725474709568,4.00547,2454.4,2454.3,0.40738]
[1725474710078,8.07987,2454.4,2454.3,0.40738]
[1725474710970,3.5981,2454.4,2454.2,0.40739]
[1725474711166,0.40739,2454.3,2454.2,0.40739]
[1725474711368,3.5981,2454.4,2454.2,0.40739]
[1725474711569,0.40739,2454.3,2454.2,0.40739]
[1725474711965,3.5981,2454.4,2454.2,0.40739]
[1725474712262,0.40739,2454.3,2454.2,0.40739]
[1725474712464,4.61653,2454.4,2454.2,0.40739]
[1725474713064,4.61653,2454.4,2454.1,3.2274]
[1725474713570,4.61653,2454.4,2454.3,0.40738]
[1725474713571,3.5981,2454.4,2454.3,0.40738]
[1725474713765,4.00548,2454.4,2454.3,0.40738]
[1725474714069,3.5981,2454.4,2454.3,3.22738]
[1725474714261,3.5981,2454.4,2454.3,4.24584]
[1725474714262,3.2078,2454.4,2454.3,4.24584]
[1725474714665,3.2078,2454.4,2454.3,8.32024]
[1725474715671,3.2078,2454.4,2454.3,9.3387]
[1725474715873,1.39912,2454.9,2454.8,0.4073]
[1725474715874,0.3809,2454.9,2454.8,0.4073]
[1725474716068,0.78818,2454.9,2454.8,3.2273]
[1725474717477,1.16328,2454.9,2454.8,3.2273]
[1725474717672,1.16328,2454.9,2454.6,0.77142207]
[1725474717673,0.40732,2454.7,2454.6,3.20052207]